{"text_format":"3","workbook":"xlsx","n_sheets":1,"sheets":["Demonstração dos Resultados"],"not_rendered":{"external_links":1,"defined_names":2},"read":"whole","date_system":"1900"}

{"sheet":"Demonstração dos Resultados","index":0,"n_rows":60,"n_cols":10,"rows_kept":60,"merged":[[9,1,9,9],[16,1,16,9],[24,1,24,9],[38,1,38,9],[43,1,43,9],[56,1,56,9]]}
[null,"Demonstração de Resultados"]
[]
[{"$nulls":3},"PERÍODO ANTERIOR","ORÇAMENTO","PERÍODO ATUAL",null,"PERÍODO ATUAL COMO % DE VENDAS ","ALTERAÇÃO % EM RELAÇÃO AO PERÍODO ANTERIOR","ALTERAÇÃO % EM RELAÇÃO AO ORÇAMENTO"]
[null,"Receita de Vendas"]
[null,"Produto/Serviço 1",null,40,50,45,null,{"$f":"IFERROR(ReceitasVendas[[#This Row],[Período Atual]]/SUBTOTAL(109,ReceitasVendas[Período Atual]),0)","v":{"v":1,"d":"100.0%"}},{"$f":"IFERROR(ReceitasVendas[[#This Row],[Período Atual]]/ReceitasVendas[[#This Row],[Período Anterior]]-1,0)","v":{"v":0.125,"d":"12.5%"}},{"$f":"IFERROR(ReceitasVendas[[#This Row],[Período Atual]]/ReceitasVendas[[#This Row],[Orçamento]]-1,0)","v":{"v":-0.09999999999999998,"d":"-10.0%"}}]
[null,"Produto/Serviço 2",{"$nulls":5},{"$f":"IFERROR(ReceitasVendas[[#This Row],[Período Atual]]/SUBTOTAL(109,ReceitasVendas[Período Atual]),0)","v":0},{"$f":"IFERROR(ReceitasVendas[[#This Row],[Período Atual]]/ReceitasVendas[[#This Row],[Período Anterior]]-1,0)","v":0},{"$f":"IFERROR(ReceitasVendas[[#This Row],[Período Atual]]/ReceitasVendas[[#This Row],[Orçamento]]-1,0)","v":0}]
[null,"Produto/Serviço 3",{"$nulls":5},{"$f":"IFERROR(ReceitasVendas[[#This Row],[Período Atual]]/SUBTOTAL(109,ReceitasVendas[Período Atual]),0)","v":0},{"$f":"IFERROR(ReceitasVendas[[#This Row],[Período Atual]]/ReceitasVendas[[#This Row],[Período Anterior]]-1,0)","v":0},{"$f":"IFERROR(ReceitasVendas[[#This Row],[Período Atual]]/ReceitasVendas[[#This Row],[Orçamento]]-1,0)","v":0}]
[null,"Produto/Serviço 4",{"$nulls":5},{"$f":"IFERROR(ReceitasVendas[[#This Row],[Período Atual]]/SUBTOTAL(109,ReceitasVendas[Período Atual]),0)","v":0},{"$f":"IFERROR(ReceitasVendas[[#This Row],[Período Atual]]/ReceitasVendas[[#This Row],[Período Anterior]]-1,0)","v":0},{"$f":"IFERROR(ReceitasVendas[[#This Row],[Período Atual]]/ReceitasVendas[[#This Row],[Orçamento]]-1,0)","v":0}]
[null,"Total",null,{"$f":"SUBTOTAL(109,ReceitasVendas[Período Anterior])","v":40},{"$f":"SUBTOTAL(109,ReceitasVendas[Orçamento])","v":50},{"$f":"SUBTOTAL(109,ReceitasVendas[Período Atual])","v":45},null,{"$f":"IFERROR(ReceitasVendas[[#Totals],[Período Atual]]/ReceitasVendas[[#Totals],[Período Atual]],0)","v":{"v":1,"d":"100.0%"}},{"$f":"IFERROR(ReceitasVendas[[#Totals],[Período Atual]]/ReceitasVendas[[#Totals],[Período Anterior]]-1,0)","v":{"v":0.125,"d":"12.5%"}},{"$f":"IFERROR(ReceitasVendas[[#Totals],[Período Atual]]/ReceitasVendas[[#Totals],[Orçamento]]-1,0)","v":{"v":-0.09999999999999998,"d":"-10.0%"}}]
[]
[null,"Custo de Vendas"]
[null,"Produto/Serviço 1",null,null,2,3,null,{"$f":"IFERROR(CustoDasVendas[[#This Row],[Período Atual]]/SUBTOTAL(109,ReceitasVendas[Período Atual]),0)","v":{"v":0.06666666666666667,"d":"6.7%"}},{"$f":"IFERROR(CustoDasVendas[[#This Row],[Período Atual]]/CustoDasVendas[[#This Row],[Período Anterior]]-1,0)","v":0},{"$f":"IFERROR(CustoDasVendas[[#This Row],[Período Atual]]/CustoDasVendas[[#This Row],[Orçamento]]-1,0)","v":{"v":0.5,"d":"50.0%"}}]
[null,"Produto/Serviço 2",null,null,5,3,null,{"$f":"IFERROR(CustoDasVendas[[#This Row],[Período Atual]]/SUBTOTAL(109,ReceitasVendas[Período Atual]),0)","v":{"v":0.06666666666666667,"d":"6.7%"}},{"$f":"IFERROR(CustoDasVendas[[#This Row],[Período Atual]]/CustoDasVendas[[#This Row],[Período Anterior]]-1,0)","v":0},{"$f":"IFERROR(CustoDasVendas[[#This Row],[Período Atual]]/CustoDasVendas[[#This Row],[Orçamento]]-1,0)","v":{"v":-0.4,"d":"-40.0%"}}]
[null,"Produto/Serviço 3",{"$nulls":3},1,null,{"$f":"IFERROR(CustoDasVendas[[#This Row],[Período Atual]]/SUBTOTAL(109,ReceitasVendas[Período Atual]),0)","v":{"v":0.022222222222222223,"d":"2.2%"}},{"$f":"IFERROR(CustoDasVendas[[#This Row],[Período Atual]]/CustoDasVendas[[#This Row],[Período Anterior]]-1,0)","v":0},{"$f":"IFERROR(CustoDasVendas[[#This Row],[Período Atual]]/CustoDasVendas[[#This Row],[Orçamento]]-1,0)","v":0}]
[null,"Produto/Serviço 4",{"$nulls":5},{"$f":"IFERROR(CustoDasVendas[[#This Row],[Período Atual]]/SUBTOTAL(109,ReceitasVendas[Período Atual]),0)","v":0},{"$f":"IFERROR(CustoDasVendas[[#This Row],[Período Atual]]/CustoDasVendas[[#This Row],[Período Anterior]]-1,0)","v":0},{"$f":"IFERROR(CustoDasVendas[[#This Row],[Período Atual]]/CustoDasVendas[[#This Row],[Orçamento]]-1,0)","v":0}]
[null,"Total",null,{"$f":"SUBTOTAL(109,CustoDasVendas[Período Anterior])","v":0},{"$f":"SUBTOTAL(109,CustoDasVendas[Orçamento])","v":7},{"$f":"SUBTOTAL(109,CustoDasVendas[Período Atual])","v":7},null,{"$f":"IFERROR(CustoDasVendas[[#Totals],[Período Atual]]/SUBTOTAL(109,ReceitasVendas[Período Atual]),0)","v":{"v":0.15555555555555556,"d":"15.6%"}},{"$f":"IFERROR(CustoDasVendas[[#Totals],[Período Atual]]/CustoDasVendas[[#Totals],[Período Anterior]]-1,0)","v":0},{"$f":"IFERROR(CustoDasVendas[[#Totals],[Período Atual]]/CustoDasVendas[[#Totals],[Orçamento]]-1,0)","v":0}]
[]
[null,"Lucro Bruto",null,{"$f":"SUM(ReceitasVendas[Período Anterior])-SUM(CustoDasVendas[Período Anterior])","v":40},{"$f":"SUM(ReceitasVendas[Orçamento])-SUM(CustoDasVendas[Orçamento])","v":43},{"$f":"SUM(ReceitasVendas[Período Atual])-SUM(CustoDasVendas[Período Atual])","v":38},null,{"$f":"IFERROR(F18/SUBTOTAL(109,ReceitasVendas[Período Atual]),0)","v":{"v":0.8444444444444444,"d":"84.4%"}},{"$f":"IFERROR(F18/D18-1,0)","v":{"v":-0.050000000000000044,"d":"-5.0%"}},{"$f":"IFERROR(F18/E18-1,0)","v":{"v":-0.11627906976744184,"d":"-11.6%"}}]
[]
[null,"Despesa Operacional: Vendas e Marketing"]
[null,"Publicidade",null,null,22,19,null,{"$f":"IFERROR(VendasEMarketing[[#This Row],[Período Atual]]/SUBTOTAL(109,ReceitasVendas[Período Atual]),0)","v":{"v":0.4222222222222222,"d":"42.2%"}},{"$f":"IFERROR(VendasEMarketing[[#This Row],[Período Atual]]/VendasEMarketing[[#This Row],[Período Anterior]]-1,0)","v":0},{"$f":"IFERROR(VendasEMarketing[[#This Row],[Período Atual]]/VendasEMarketing[[#This Row],[Orçamento]]-1,0)","v":{"v":-0.13636363636363635,"d":"-13.6%"}}]
[null,"Marketing direto",{"$nulls":5},{"$f":"IFERROR(VendasEMarketing[[#This Row],[Período Atual]]/SUBTOTAL(109,ReceitasVendas[Período Atual]),0)","v":0},{"$f":"IFERROR(VendasEMarketing[[#This Row],[Período Atual]]/VendasEMarketing[[#This Row],[Período Anterior]]-1,0)","v":0},{"$f":"IFERROR(VendasEMarketing[[#This Row],[Período Atual]]/VendasEMarketing[[#This Row],[Orçamento]]-1,0)","v":0}]
[null,"Outras despesas (especificar)",{"$nulls":5},{"$f":"IFERROR(VendasEMarketing[[#This Row],[Período Atual]]/SUBTOTAL(109,ReceitasVendas[Período Atual]),0)","v":0},{"$f":"IFERROR(VendasEMarketing[[#This Row],[Período Atual]]/VendasEMarketing[[#This Row],[Período Anterior]]-1,0)","v":0},{"$f":"IFERROR(VendasEMarketing[[#This Row],[Período Atual]]/VendasEMarketing[[#This Row],[Orçamento]]-1,0)","v":0}]
[null,"Total",null,{"$f":"SUBTOTAL(109,VendasEMarketing[Período Anterior])","v":0},{"$f":"SUBTOTAL(109,VendasEMarketing[Orçamento])","v":22},{"$f":"SUBTOTAL(109,VendasEMarketing[Período Atual])","v":19},null,{"$f":"IFERROR(VendasEMarketing[[#Totals],[Período Atual]]/SUBTOTAL(109,ReceitasVendas[Período Atual]),0)","v":{"v":0.4222222222222222,"d":"42.2%"}},{"$f":"IFERROR(VendasEMarketing[[#Totals],[Período Atual]]/VendasEMarketing[[#Totals],[Período Anterior]]-1,0)","v":0},{"$f":"IFERROR(VendasEMarketing[[#Totals],[Período Atual]]/VendasEMarketing[[#Totals],[Orçamento]]-1,0)","v":{"v":-0.13636363636363635,"d":"-13.6%"}}]
[]
[null,"Despesa Operacional: Geral e Administrativa"]
[null,"Salários e ordenados",null,null,56,51,null,{"$f":"IFERROR(GeraisEAdministrativas[[#This Row],[Período Atual]]/SUBTOTAL(109,ReceitasVendas[Período Atual]),0)","v":{"v":1.1333333333333333,"d":"113.3%"}},{"$f":"IFERROR(GeraisEAdministrativas[[#This Row],[Período Atual]]/GeraisEAdministrativas[[#This Row],[Período Anterior]]-1,0)","v":0},{"$f":"IFERROR(GeraisEAdministrativas[[#This Row],[Período Atual]]/GeraisEAdministrativas[[#This Row],[Orçamento]]-1,0)","v":{"v":-0.0892857142857143,"d":"-8.9%"}}]
[null,"Serviços externos",{"$nulls":5},{"$f":"IFERROR(GeraisEAdministrativas[[#This Row],[Período Atual]]/SUBTOTAL(109,ReceitasVendas[Período Atual]),0)","v":0},{"$f":"IFERROR(GeraisEAdministrativas[[#This Row],[Período Atual]]/GeraisEAdministrativas[[#This Row],[Período Anterior]]-1,0)","v":0},{"$f":"IFERROR(GeraisEAdministrativas[[#This Row],[Período Atual]]/GeraisEAdministrativas[[#This Row],[Orçamento]]-1,0)","v":0}]
[null,"Consumíveis",{"$nulls":5},{"$f":"IFERROR(GeraisEAdministrativas[[#This Row],[Período Atual]]/SUBTOTAL(109,ReceitasVendas[Período Atual]),0)","v":0},{"$f":"IFERROR(GeraisEAdministrativas[[#This Row],[Período Atual]]/GeraisEAdministrativas[[#This Row],[Período Anterior]]-1,0)","v":0},{"$f":"IFERROR(GeraisEAdministrativas[[#This Row],[Período Atual]]/GeraisEAdministrativas[[#This Row],[Orçamento]]-1,0)","v":0}]
[null,"Refeições e entretenimento",{"$nulls":5},{"$f":"IFERROR(GeraisEAdministrativas[[#This Row],[Período Atual]]/SUBTOTAL(109,ReceitasVendas[Período Atual]),0)","v":0},{"$f":"IFERROR(GeraisEAdministrativas[[#This Row],[Período Atual]]/GeraisEAdministrativas[[#This Row],[Período Anterior]]-1,0)","v":0},{"$f":"IFERROR(GeraisEAdministrativas[[#This Row],[Período Atual]]/GeraisEAdministrativas[[#This Row],[Orçamento]]-1,0)","v":0}]
[null,"Aluguer",{"$nulls":5},{"$f":"IFERROR(GeraisEAdministrativas[[#This Row],[Período Atual]]/SUBTOTAL(109,ReceitasVendas[Período Atual]),0)","v":0},{"$f":"IFERROR(GeraisEAdministrativas[[#This Row],[Período Atual]]/GeraisEAdministrativas[[#This Row],[Período Anterior]]-1,0)","v":0},{"$f":"IFERROR(GeraisEAdministrativas[[#This Row],[Período Atual]]/GeraisEAdministrativas[[#This Row],[Orçamento]]-1,0)","v":0}]
[null,"Telefone",{"$nulls":5},{"$f":"IFERROR(GeraisEAdministrativas[[#This Row],[Período Atual]]/SUBTOTAL(109,ReceitasVendas[Período Atual]),0)","v":0},{"$f":"IFERROR(GeraisEAdministrativas[[#This Row],[Período Atual]]/GeraisEAdministrativas[[#This Row],[Período Anterior]]-1,0)","v":0},{"$f":"IFERROR(GeraisEAdministrativas[[#This Row],[Período Atual]]/GeraisEAdministrativas[[#This Row],[Orçamento]]-1,0)","v":0}]
[null,"Utilitários",{"$nulls":5},{"$f":"IFERROR(GeraisEAdministrativas[[#This Row],[Período Atual]]/SUBTOTAL(109,ReceitasVendas[Período Atual]),0)","v":0},{"$f":"IFERROR(GeraisEAdministrativas[[#This Row],[Período Atual]]/GeraisEAdministrativas[[#This Row],[Período Anterior]]-1,0)","v":0},{"$f":"IFERROR(GeraisEAdministrativas[[#This Row],[Período Atual]]/GeraisEAdministrativas[[#This Row],[Orçamento]]-1,0)","v":0}]
[null,"Depreciação",{"$nulls":5},{"$f":"IFERROR(GeraisEAdministrativas[[#This Row],[Período Atual]]/SUBTOTAL(109,ReceitasVendas[Período Atual]),0)","v":0},{"$f":"IFERROR(GeraisEAdministrativas[[#This Row],[Período Atual]]/GeraisEAdministrativas[[#This Row],[Período Anterior]]-1,0)","v":0},{"$f":"IFERROR(GeraisEAdministrativas[[#This Row],[Período Atual]]/GeraisEAdministrativas[[#This Row],[Orçamento]]-1,0)","v":0}]
[null,"Seguro",{"$nulls":5},{"$f":"IFERROR(GeraisEAdministrativas[[#This Row],[Período Atual]]/SUBTOTAL(109,ReceitasVendas[Período Atual]),0)","v":0},{"$f":"IFERROR(GeraisEAdministrativas[[#This Row],[Período Atual]]/GeraisEAdministrativas[[#This Row],[Período Anterior]]-1,0)","v":0},{"$f":"IFERROR(GeraisEAdministrativas[[#This Row],[Período Atual]]/GeraisEAdministrativas[[#This Row],[Orçamento]]-1,0)","v":0}]
[null,"Reparações e manutenção",{"$nulls":5},{"$f":"IFERROR(GeraisEAdministrativas[[#This Row],[Período Atual]]/SUBTOTAL(109,ReceitasVendas[Período Atual]),0)","v":0},{"$f":"IFERROR(GeraisEAdministrativas[[#This Row],[Período Atual]]/GeraisEAdministrativas[[#This Row],[Período Anterior]]-1,0)","v":0},{"$f":"IFERROR(GeraisEAdministrativas[[#This Row],[Período Atual]]/GeraisEAdministrativas[[#This Row],[Orçamento]]-1,0)","v":0}]
[null,"Outras despesas (especificar)",{"$nulls":5},{"$f":"IFERROR(GeraisEAdministrativas[[#This Row],[Período Atual]]/SUBTOTAL(109,ReceitasVendas[Período Atual]),0)","v":0},{"$f":"IFERROR(GeraisEAdministrativas[[#This Row],[Período Atual]]/GeraisEAdministrativas[[#This Row],[Período Anterior]]-1,0)","v":0},{"$f":"IFERROR(GeraisEAdministrativas[[#This Row],[Período Atual]]/GeraisEAdministrativas[[#This Row],[Orçamento]]-1,0)","v":0}]
[null,"Total",null,{"$f":"SUBTOTAL(109,GeraisEAdministrativas[Período Anterior])","v":0},{"$f":"SUBTOTAL(109,GeraisEAdministrativas[Orçamento])","v":56},{"$f":"SUBTOTAL(109,GeraisEAdministrativas[Período Atual])","v":51},null,{"$f":"IFERROR(GeraisEAdministrativas[[#Totals],[Período Atual]]/SUBTOTAL(109,ReceitasVendas[Período Atual]),0)","v":{"v":1.1333333333333333,"d":"113.3%"}},{"$f":"IFERROR(GeraisEAdministrativas[[#Totals],[Período Atual]]/GeraisEAdministrativas[[#Totals],[Período Anterior]]-1,0)","v":0},{"$f":"IFERROR(GeraisEAdministrativas[[#Totals],[Período Atual]]/GeraisEAdministrativas[[#Totals],[Orçamento]]-1,0)","v":{"v":-0.0892857142857143,"d":"-8.9%"}}]
[]
[null,"Despesa Operacional: Outra"]
[null,"Outras despesas operacionais 1",null,null,10,null,null,{"$f":"IFERROR(OutrasCategoriasDeDespesaOperacional[[#This Row],[Período Atual]]/SUBTOTAL(109,ReceitasVendas[Período Atual]),0)","v":0},{"$f":"IFERROR(OutrasCategoriasDeDespesaOperacional[[#This Row],[Período Atual]]/OutrasCategoriasDeDespesaOperacional[[#This Row],[Período Anterior]]-1,0)","v":0},{"$f":"IFERROR(OutrasCategoriasDeDespesaOperacional[[#This Row],[Período Atual]]/OutrasCategoriasDeDespesaOperacional[[#This Row],[Orçamento]]-1,0)","v":{"v":-1,"d":"-100.0%"}}]
[null,"Outras despesas operacionais 2",{"$nulls":5},{"$f":"IFERROR(OutrasCategoriasDeDespesaOperacional[[#This Row],[Período Atual]]/SUBTOTAL(109,ReceitasVendas[Período Atual]),0)","v":0},{"$f":"IFERROR(OutrasCategoriasDeDespesaOperacional[[#This Row],[Período Atual]]/OutrasCategoriasDeDespesaOperacional[[#This Row],[Período Anterior]]-1,0)","v":0},{"$f":"IFERROR(OutrasCategoriasDeDespesaOperacional[[#This Row],[Período Atual]]/OutrasCategoriasDeDespesaOperacional[[#This Row],[Orçamento]]-1,0)","v":0}]
[null,"Total",null,{"$f":"SUBTOTAL(109,OutrasCategoriasDeDespesaOperacional[Período Anterior])","v":0},{"$f":"SUBTOTAL(109,OutrasCategoriasDeDespesaOperacional[Orçamento])","v":10},{"$f":"SUBTOTAL(109,OutrasCategoriasDeDespesaOperacional[Período Atual])","v":0},null,{"$f":"IFERROR(OutrasCategoriasDeDespesaOperacional[[#Totals],[Período Atual]]/SUBTOTAL(109,ReceitasVendas[Período Atual]),0)","v":0},{"$f":"IFERROR(OutrasCategoriasDeDespesaOperacional[[#Totals],[Período Atual]]/OutrasCategoriasDeDespesaOperacional[[#Totals],[Período Anterior]]-1,0)","v":0},{"$f":"SUBTOTAL(109,OutrasCategoriasDeDespesaOperacional[Alteração % em relação ao Orçamento])","v":{"v":-1,"d":"-100.0%"}}]
[]
[null,"Total de Despesas Operacionais",null,{"$f":"SUM(VendasEMarketing[Período Anterior],GeraisEAdministrativas[Período Anterior],OutrasCategoriasDeDespesaOperacional[Período Anterior])","v":0},{"$f":"SUM(VendasEMarketing[Orçamento],GeraisEAdministrativas[Orçamento],OutrasCategoriasDeDespesaOperacional[Orçamento])","v":88},{"$f":"SUM(VendasEMarketing[Período Atual],GeraisEAdministrativas[Período Atual],OutrasCategoriasDeDespesaOperacional[Período Atual])","v":70},null,{"$f":"IFERROR(F45/SUBTOTAL(109,ReceitasVendas[Período Atual]),0)","v":{"v":1.5555555555555556,"d":"155.6%"}},{"$f":"IFERROR(F45/D45-1,0)","v":0},{"$f":"IFERROR(F45/E45-1,0)","v":{"v":-0.20454545454545459,"d":"-20.5%"}}]
[]
[null,"Rendimentos de Operações",null,{"$f":"D18-D45","v":40},{"$f":"E18-E45","v":-45},{"$f":"F18-F45","v":-32},null,{"$f":"IFERROR(F47/SUBTOTAL(109,ReceitasVendas[Período Atual]),0)","v":{"v":-0.7111111111111111,"d":"-71.1%"}},{"$f":"IFERROR(IF(D47=F47,0,IF(F47>D47,ABS((F47/D47)-1),IF(AND(F47<D47,D47<0),-((F47/D47)-1),(F47/D47)-1))),0)","v":{"v":-1.8,"d":"-180.0%"}},{"$f":"IFERROR(IF(E47=F47,0,IF(F47>E47,ABS((F47/E47)-1),IF(AND(F47<E47,E47<0),-((F47/E47)-1),(F47/E47)-1))),0)","v":{"v":0.28888888888888886,"d":"28.9%"}}]
[]
[null,"Outros Rendimentos",{"$nulls":5},{"$f":"IFERROR(F49/SUBTOTAL(109,ReceitasVendas[Período Atual]),0)","v":0},{"$f":"IFERROR(F49/D49-1,0)","v":0},{"$f":"IFERROR(F49/E49-1,0)","v":0}]
[]
[null,"Impostos"]
[null,"Impostos Sobre o Rendimento",null,null,32,30,null,{"$f":"IFERROR(Impostos[[#This Row],[Período Atual]]/SUBTOTAL(109,ReceitasVendas[Período Atual]),0)","v":{"v":0.6666666666666666,"d":"66.7%"}},{"$f":"IFERROR(Impostos[[#This Row],[Período Atual]]/Impostos[[#This Row],[Período Anterior]]-1,0)","v":0},{"$f":"IFERROR(Impostos[[#This Row],[Período Atual]]/Impostos[[#This Row],[Orçamento]]-1,0)","v":{"v":-0.0625,"d":"-6.3%"}}]
[null,"Impostos Sobre os Salários",{"$nulls":5},{"$f":"IFERROR(Impostos[[#This Row],[Período Atual]]/SUBTOTAL(109,ReceitasVendas[Período Atual]),0)","v":0},{"$f":"IFERROR(Impostos[[#This Row],[Período Atual]]/Impostos[[#This Row],[Período Anterior]]-1,0)","v":0},{"$f":"IFERROR(Impostos[[#This Row],[Período Atual]]/Impostos[[#This Row],[Orçamento]]-1,0)","v":0}]
[null,"Impostos Sobre Bens Imobiliários",{"$nulls":5},{"$f":"IFERROR(Impostos[[#This Row],[Período Atual]]/SUBTOTAL(109,ReceitasVendas[Período Atual]),0)","v":0},{"$f":"IFERROR(Impostos[[#This Row],[Período Atual]]/Impostos[[#This Row],[Período Anterior]]-1,0)","v":0},{"$f":"IFERROR(Impostos[[#This Row],[Período Atual]]/Impostos[[#This Row],[Orçamento]]-1,0)","v":0}]
[null,"Outros impostos (especificar)",{"$nulls":5},{"$f":"IFERROR(Impostos[[#This Row],[Período Atual]]/SUBTOTAL(109,ReceitasVendas[Período Atual]),0)","v":0},{"$f":"IFERROR(Impostos[[#This Row],[Período Atual]]/Impostos[[#This Row],[Período Anterior]]-1,0)","v":0},{"$f":"IFERROR(Impostos[[#This Row],[Período Atual]]/Impostos[[#This Row],[Orçamento]]-1,0)","v":0}]
[null,"Total",null,{"$f":"SUBTOTAL(109,Impostos[Período Anterior])","v":0},{"$f":"SUBTOTAL(109,Impostos[Orçamento])","v":32},{"$f":"SUBTOTAL(109,Impostos[Período Atual])","v":30},null,{"$f":"IFERROR(Impostos[[#Totals],[Período Atual]]/SUBTOTAL(109,ReceitasVendas[Período Atual]),0)","v":{"v":0.6666666666666666,"d":"66.7%"}},{"$f":"IFERROR(Impostos[[#Totals],[Período Atual]]/Impostos[[#Totals],[Período Anterior]]-1,0)","v":0},{"$f":"IFERROR(Impostos[[#Totals],[Período Atual]]/Impostos[[#Totals],[Orçamento]]-1,0)","v":{"v":-0.0625,"d":"-6.3%"}}]
[]
[null,"Lucro Líquido",null,{"$f":"D47+D49-Impostos[[#Totals],[Período Anterior]]","v":40},{"$f":"E47+E49-Impostos[[#Totals],[Período Anterior]]","v":-45},{"$f":"F47+F49-Impostos[[#Totals],[Período Anterior]]","v":-32},null,{"$f":"IFERROR(F58/SUBTOTAL(109,ReceitasVendas[Período Atual]),0)","v":{"v":-0.7111111111111111,"d":"-71.1%"}},{"$f":"IFERROR(IF(D58=F58,0,IF(F58>D58,ABS((F58/D58)-1),IF(AND(F58<D58,D58<0),-((F58/D58)-1),(F58/D58)-1))),0)","v":{"v":-1.8,"d":"-180.0%"}},{"$f":"IFERROR(IF(E58=F58,0,IF(F58>E58,ABS((F58/E58)-1),IF(AND(F58<E58,E58<0),-((F58/E58)-1),(F58/E58)-1))),0)","v":{"v":0.28888888888888886,"d":"28.9%"}}]
[null,"Margem Bruta",null,{"$f":"D18/SUM(ReceitasVendas[Período Anterior])","v":{"v":1,"d":"100.0%"}},{"$f":"E18/SUM(ReceitasVendas[Orçamento])","v":{"v":0.86,"d":"86.0%"}},{"$f":"F18/SUM(ReceitasVendas[Período Atual])","v":{"v":0.8444444444444444,"d":"84.4%"}}]
[null,"Rendimento das Vendas",null,{"$f":"D58/SUM(ReceitasVendas[Período Anterior])","v":{"v":1,"d":"100.0%"}},{"$f":"E58/SUM(ReceitasVendas[Orçamento])","v":{"v":-0.9,"d":"-90.0%"}},{"$f":"F58/SUM(ReceitasVendas[Período Atual])","v":{"v":-0.7111111111111111,"d":"-71.1%"}}]